Cogmind - Beta 15 @@@ ROGUE MODE // 2025.06.29 @ 16:38:50 Player: LameThyst Result: Destroyed by H-55 Commando with Gauss Rifle Performance ------------- Evolutions (2) 1000 Regions Visited (5) 1000 Robots Destroyed (28) 140 Value Destroyed (827) 827 Prototype IDs (2) 40 Alien Tech Used (0) 0 Bonus (0) 0 TOTAL SCORE: 3007 Bonus ------- None Cogmind --------- Core Integrity 0/550 Matter 235/300 Energy 59/100 System Corruption 0% Temperature Cool (0) Movement Core (200) Ox3 Location -8/Storage Parts ------- > --- POWER (1) -------- (None) > --- PROPULSION (4) --- (None) > --- UTILITY (3) ------ Improved Heat Sink > --- WEAPON (3) ------- Particle Gun Assault Rifle Great Axe > --- INVENTORY (5) ---- (None) Peak State ------------ > --- POWER ------------ Improved Deuterium Engine > --- PROPULSION ------- Aluminum Leg Aluminum Leg Aluminum Leg Carbon-fiber Leg > --- UTILITY ---------- Medium Storage Unit High-capacity Matter Pod Reactive Plating > --- WEAPON ----------- Light Assault Rifle Heavy Assault Rifle Improved Assault Rifle > --- INVENTORY -------- Improved Deuterium Engine Aluminum Leg Aluminum Leg Cryofiber Web Heat Sink Sensor Array Light Assault Rifle Datajack Mining Laser Great Axe [Rating: 22] Favorites ----------- Power Ion Engine Engine Ion Engine Propulsion Aluminum Leg Leg Aluminum Leg Utility Medium Storage Unit Device Cryofiber Web Storage Medium Storage Unit Protection Medium Armor Plating Weapon Light Assault Rifle Energy Gun Improved Medium Laser Energy Cannon EM Pulse Cannon Ballistic Gun Light Assault Rifle Special Weapon Mining Laser Slashing Weapon Great Axe Build | -11 -10 -9 -9 -8 -8 ------- Run | Yrd Mat Mat Min Mat Sto Slots Evolved 4 | . . 2 . 2 . Power . | . . . . . . Propulsion 2 | . . 2 . . . Utility 1 | . . . . 1 . Weapon 1 | . . . . 1 . Parts Attached 40 | 6 1 14 1 11 7 Power 6 | 1 . 3 . 2 . Engine 6 | 1 . 3 . 2 . Core . | . . . . . . Reactor . | . . . . . . Propulsion 10 | 2 . 5 . 3 . Treads . | . . . . . . Leg 10 | 2 . 5 . 3 . Wheel . | . . . . . . Hover . | . . . . . . Flight . | . . . . . . Utility 11 | 1 . 4 1 2 3 Device 4 | . . 1 . . 3 Storage 4 | 1 . 1 1 1 . Processor . | . . . . . . Hackware . | . . . . . . Protection 3 | . . 2 . 1 . Artifact . | . . . . . . Weapon 13 | 2 1 2 . 4 4 Energy Gun 2 | . . . . 1 1 Energy Cannon 1 | . . . . 1 . Ballistic Gun 8 | 2 1 2 . 2 1 Ballistic Cannon . | . . . . . . Launcher . | . . . . . . Special Weapon 1 | . . . . . 1 Impact Weapon . | . . . . . . Slashing Weapon 1 | . . . . . 1 Piercing Weapon . | . . . . . . Special Melee Weapon . | . . . . . . Unidentified Prototypes 2 | . . 1 . 1 . Parts Lost 14 | . . . . 10 4 Power 1 | . . . . 1 . Propulsion 4 | . . . . 4 . Utility 3 | . . . . 1 2 Weapon 6 | . . . . 4 2 Highest Loss Streak 5 | . . . . 5 4 To Critical Strikes . | . . . . . . Average Backups 7 | 2 5 8 10 9 2 Power 1 | . 1 1 1 . . Propulsion 1 | 1 2 1 2 1 . Utility 1 | . . 1 3 2 . Weapon 2 | . 1 2 2 3 2 Tool/Special . | . . . . . . Unused Backups 8 | . . 5 . 3 . Power 3 | . . 2 . 1 . Propulsion 2 | . . 2 . . . Utility 1 | . . . . 1 . Weapon 1 | . . 1 . . . Tool/Special 1 | . . . . 1 . Average Slot Usage (%) 84 | . 85 95 100 89 26 Engine 9 | . 14 11 11 8 . Leg 32 | . 28 40 44 33 . Device 2 | . . . . 2 14 Storage 12 | . 14 11 12 17 . Protection 5 | . . 10 9 2 . Ballistic Gun 20 | . 28 22 22 23 1 Peak Build Rating 22 | 6 6 15 15 22 13 Average Rating 11 | 4 6 10 14 17 7 On Entrance 7 | . 6 6 15 14 4 Naked Turns 8 | . . . . 8 . Heaviest Build 44 | 12 12 33 33 44 10 Greatest Support 45 | 20 20 40 40 45 3 Greatest Overweight (x) 3 | . . . . 1 3 Average Overweight (x) . | . . . . . . Largest Inventory Capacity 15 | 8 8 10 10 15 5 Average Capacity 8 | 6 8 8 10 11 5 Most Carried 10 | 4 8 10 10 10 4 Average Carried 7 | 2 5 8 9 9 2 Final Capacity 10 | 8 8 10 10 5 5 Final Carried 10 | 4 8 10 10 5 . Class Distribution -------------------- 49% | Mutant 30% | Scavenger-Mutant 8% | Skirmisher 7% | Scavenger-Gunner 3% | Scavenger-Tank Dominant Class ---------------- Mutant | -10/Materials Mutant | -9/Materials Scavenger-Mutant | -9/Mines Skirmisher | -8/Materials Mutant | -8/Storage Resources | -11 -10 -9 -9 -8 -8 ----------- Run | Yrd Mat Mat Min Mat Sto Matter Collected 1248 | 234 70 294 200 404 46 Remotely . | . . . . . . Salvage Created 1164 | . 73 575 62 300 154 Parts 58 | . 6 26 3 14 9 Haulers Intercepted 2 | . . 2 . . . Recyclers Shooed 1 | . . 1 . . . Parts Field Recycled . | . . . . . . Retrieved Matter . | . . . . . . Parts Self-Destructed . | . . . . . . Prevented . | . . . . . . Kills | -11 -10 -9 -9 -8 -8 ------- Run | Yrd Mat Mat Min Mat Sto Combat Hostiles Destroyed 24 | . 3 8 4 6 3 Melee 2 | . . . . . 2 Guns 22 | . 3 8 4 6 1 Classes Destroyed 8 | . 2 5 . 1 . Hauler 2 | . . 2 . . . Recycler 1 | . . 1 . . . Operator 1 | . 1 . . . . Swarmer 8 | . 3 . 4 1 . Grunt 8 | . . 4 . 2 2 Brawler 1 | . . 1 . . . Sentry 5 | . . 3 . 1 1 Hunter 2 | . . . . 2 . Best Kill Streak 4 | . 3 3 4 3 2 Combat Bots Only 4 | . 3 3 4 3 2 Max Kills in Single Turn 2 | . 1 2 2 1 1 Gunslinging 1 | . . 1 1 . . Exploded . | . . . . . . Melee 1 | . . . . . 1 Uniques/NPCs Destroyed . | . . . . . . Combat | -11 -10 -9 -9 -8 -8 -------- Run | Yrd Mat Mat Min Mat Sto Hostile Shots Fired 315 | . 19 50 19 168 59 Missed 80 | . 7 15 7 34 17 Hits 235 | . 12 35 12 134 42 Melee 8 | . . 8 . . . Projectile 227 | . 12 27 12 134 42 Critical Strikes 9 | . . 1 . 4 4 Damage Taken 2932 | . 101 577 95 1608 551 Core 649 | . 18 64 . 267 300 Absorbed by Shields . | . . . . . . Ignored by Resistances 166 | . . . . 166 . Regen/Repaired (Parts) 87 | . . . . 87 . Core Remaining (%) 92 | 100 92 . 84 . . Volleys Fired 108 | . 17 41 5 36 9 Largest 3 | . 2 2 2 3 2 Hottest 102 | . 40 46 46 102 100 Shots Fired 229 | . 34 82 10 87 16 Gun 227 | . 34 82 10 87 14 Cannon 1 | . . . . . 1 Launcher . | . . . . . . Special 1 | . . . . . 1 Kinetic 210 | . 34 82 10 77 7 Thermal 18 | . . . . 10 8 Explosive . | . . . . . . Electromagnetic 1 | . . . . . 1 Robot Hit Streak 18 | . 4 18 2 11 7 Robot Miss Streak 6 | . 3 3 3 6 2 Penetration Max . | . . . . . . Secondary Targets 4 | . . 1 1 2 . Max Gunslinging Chain 1 | . . 1 1 1 . Shots Hit Robots 167 | . 18 64 4 62 19 Core Hits 61 | . 7 26 4 19 5 Critical Kills 1 | . . 1 . . . Critical Parts Destroyed 2 | . . 1 . 1 . Critical Strikes 4 | . . 2 . 2 . Burn 1 | . . . . 1 . Destroy 3 | . . 2 . 1 . Melee Attacks 8 | . . . . . 8 Impact . | . . . . . . Slashing 8 | . . . . . 8 Piercing . | . . . . . . Sneak Attacks 1 | . . . . . 1 Combat Hostiles . | . . . . . . Follow-up Attacks . | . . . . . . Damage Inflicted 2102 | . 147 688 77 682 508 Guns 1740 | . 147 688 77 682 146 Cannons 25 | . . . . . 25 Explosions . | . . . . . . Melee 337 | . . . . . 337 Ramming . | . . . . . . Kinetic 1545 | . 147 688 77 583 50 Thermal 195 | . . . . 99 96 Explosive . | . . . . . . Electromagnetic 25 | . . . . . 25 Impact . | . . . . . . Slashing 337 | . . . . . 337 Piercing . | . . . . . . Highest Corruption . | . . . . . . Average Corruption . | . . . . . . Corruption Purged . | . . . . . . Corruption Blocked . | . . . . . . Overload Shots . | . . . . . . Overflow Damage . | . . . . . . Projectiles . | . . . . . . Explosions . | . . . . . . Melee . | . . . . . . Knockbacks . | . . . . . . Impact . | . . . . . . Kinetic . | . . . . . . Secondary . | . . . . . . Self-Inflicted Damage . | . . . . . . Shots . | . . . . . . Rammed . | . . . . . . Targets Rammed . | . . . . . . Kicked . | . . . . . . Crushed . | . . . . . . Highest Temperature 256 | . . 34 . 256 23 Average Temperature 62 | . . 9 . 84 17 Received Heat Transfer 705 | . . 165 . 315 225 Effects 1 | . . . . 1 . Interference 1 | . . . . 1 . Siege Activations . | . . . . . . Martial Activations . | . . . . . . Shielding Activations . | . . . . . . Robots Disrupted . | . . . . . . Combat Hostiles . | . . . . . . Robots Corrupted . | . . . . . . Combat Hostiles . | . . . . . . Parts Fried . | . . . . . . Impact Corruptions . | . . . . . . Robots Melted . | . . . . . . Combat Hostiles . | . . . . . . Parts Melted 1 | . . . . 1 . Heat Transferred 518 | . . . . 296 222 Parts Sabotaged . | . . . . . . Parts Stolen . | . . . . . . Parts Stripped . | . . . . . . Power Chain Reactions . | . . . . . . Alert | -11 -10 -9 -9 -8 -8 ------- Run | Yrd Mat Mat Min Mat Sto Maximum Alert Level . | . . . . . . Low Security (%) 100 | 100 100 100 100 100 100 Level 1 . | . . . . . . Level 2 . | . . . . . . Level 3 . | . . . . . . Level 4 . | . . . . . . Level 5 . | . . . . . . High Security . | . . . . . . Max Security . | . . . . . . Peak Influence 138 | . 60 134 138 90 40 Initial 48 | . . 16 48 10 8 Average 44 | . 21 79 81 16 11 Influence Increases 766 | . 87 274 90 205 110 Destroy 0b10 Robot/C 480 | . 60 160 80 120 60 Destroy 0b10 Robot/NC 20 | . 5 15 . . . Destroy Leader 134 | . 10 54 10 40 20 Successful Hack 12 | . 12 . . . . Disable Machine 15 | . . . . . 15 Partial Spotted 30 | . . . . 15 15 Lose Combat Pursuer 75 | . . 45 . 30 . Influence Decreases 726 | . 47 190 186 213 90 Entered New Map 130 | . . 24 76 18 12 Time Decay 471 | . 47 166 110 110 38 Lost Part 120 | . . . . 80 40 Lost Ally 5 | . . . . 5 . Squads Dispatched 3 | . . . . 2 1 Investigation . | . . . . . . Extermination . | . . . . . . Reinforcement 3 | . . . . 2 1 Assault . | . . . . . . Garrison . | . . . . . . Intercept . | . . . . . . Searches Triggered . | . . . . . . Construction Impeded . | . . . . . . Haulers Reinforced . | . . . . . . Active Scanning Responses . | . . . . . . Cargo Convoy Interrupts . | . . . . . . Stealth | -11 -10 -9 -9 -8 -8 --------- Run | Yrd Mat Mat Min Mat Sto Distress Signals 3 | . . 1 . 2 . Communications Jammed . | . . . . . . Distress Signals . | . . . . . . Times Spotted 41 | . 4 12 4 16 5 Peak Tracking Total 8 | . 3 5 4 8 4 Tactical Retreats 3 | . . 1 . 2 . Traps | -11 -10 -9 -9 -8 -8 ------- Run | Yrd Mat Mat Min Mat Sto Traps Triggered . | . . . . . . Indirectly . | . . . . . . Trap Hack Attempts . | . . . . . . Triggered . | . . . . . . Disarmed . | . . . . . . Reprogrammed . | . . . . . . Reused . | . . . . . . Traps Extracted . | . . . . . . Installed . | . . . . . . Triggered . | . . . . . . Machines | -11 -10 -9 -9 -8 -8 ---------- Run | Yrd Mat Mat Min Mat Sto Machines Disabled 1 | . . . . . 1 Max in Single Turn 1 | . . . . . 1 Machines Repaired . | . . . . . . Machines Dismantled . | . . . . . . Machines Sabotaged . | . . . . . . Overloaded Fab Kills . | . . . . . . Hacking | -11 -10 -9 -9 -8 -8 --------- Run | Yrd Mat Mat Min Mat Sto Machines Accessed 8 | . 4 1 . 2 1 Terminals 4 | . 3 1 . . . Fabricators . | . . . . . . Repair Stations 2 | . . . . 1 1 Recycling Units 2 | . 1 . . 1 . Scanalyzers . | . . . . . . Garrison Access . | . . . . . . Total Hacks 19 | . 9 3 . 6 1 Successful 9 | . 5 . . 4 . Failed 10 | . 4 3 . 2 1 Catastrophic 1 | . . . . . 1 Database Lockouts . | . . . . . . Manual . | . . . . . . Terminals 9 | . 6 3 . . . Fabricators . | . . . . . . Repair Stations 6 | . . . . 5 1 Recycling Units 4 | . 3 . . 1 . Scanalyzers . | . . . . . . Garrison Access . | . . . . . . Terminal Hacks 4 | . 4 . . . . Branch Access Points 1 | . 1 . . . . Locate Traps 2 | . 2 . . . . Registered Components 1 | . 1 . . . . Fabricator Hacks . | . . . . . . Repair Station Hacks 3 | . . . . 3 . Scan Component 2 | . . . . 2 . Repair 1 | . . . . 1 . Recycling Unit Hacks 2 | . 1 . . 1 . Retrieve Components 2 | . 1 . . 1 . Scanalyzer . | . . . . . . Garrison Access Hacks . | . . . . . . Unauthorized Hacks . | . . . . . . Terminals . | . . . . . . Fabricators . | . . . . . . Repair Stations . | . . . . . . Recycling Units . | . . . . . . Scanalyzers . | . . . . . . Garrison Access . | . . . . . . Data Cores Recovered 1 | . 1 . . . . Used 1 | . 1 . . . . Hacking Detections 6 | . 3 1 . 1 1 Full Trace Events 1 | . . . . 1 . Feedback Events . | . . . . . . Feedback Blocked . | . . . . . . Robot Schematics Acquired . | . . . . . . Robots Built . | . . . . . . Authchips . | . . . . . . Time . | . . . . . . Total Robot Build Rating . | . . . . . . Part Schematics Acquired . | . . . . . . Parts Built . | . . . . . . Authchips . | . . . . . . Time . | . . . . . . Total Part Build Rating . | . . . . . . Parts Repaired 1 | . . . . 1 . Time 26 | . . . . 26 . Parts Recycled . | . . . . . . Recycled Matter . | . . . . . . Retrieved Matter . | . . . . . . Retrieved Components 5 | . 2 . . 3 . Parts Scanalyzed . | . . . . . . Part Schematics Acquired . | . . . . . . Parts Damaged . | . . . . . . Bothacking | -11 -10 -9 -9 -8 -8 ------------ Run | Yrd Mat Mat Min Mat Sto Used RIF Installer . | . . . . . . Robots Hacked . | . . . . . . Non-combat . | . . . . . . Combat . | . . . . . . Robot Hacks Applied . | . . . . . . Relay Couplers Released . | . . . . . . Fabnet Peak Effective % . | . . . . . . Robots Rewired . | . . . . . . Allies Hacked . | . . . . . . Hacks Repelled . | . . . . . . Allies | -11 -10 -9 -9 -8 -8 -------- Run | Yrd Mat Mat Min Mat Sto Total Allies 1 | . . . 1 . . Largest Group 1 | . . . 1 1 . Highest-Rated Group 31 | . . . 31 31 . Highest-Rated Ally 31 | . . . 31 31 . Total Orders . | . . . . . . Ally Attacks 1 | . . . . 1 . Total Damage 21 | . . . . 21 . Kills . | . . . . . . Allies Corrupted . | . . . . . . Allies Melted . | . . . . . . Intel | -11 -10 -9 -9 -8 -8 ------- Run | Yrd Mat Mat Min Mat Sto Active Infowar (turns) 115 | . . 5 . 110 . Sensors 115 | . . 5 . 110 . Robot Analysis Total . | . . . . . . Derelict Logs Recovered 1 | . . . 1 . . Drone Launches . | . . . . . . Drone Recoveries . | . . . . . . Exploration | -11 -10 -9 -9 -8 -8 ------------- Run | Yrd Mat Mat Min Mat Sto Turns Passed 1353 | 65 194 378 228 341 147 Spaces Moved 742 | 47 120 156 175 138 106 Core 128 | 5 . . . 17 106 Treads . | . . . . . . Legs 614 | 42 120 156 175 121 . Wheels . | . . . . . . Hover . | . . . . . . Flight . | . . . . . . Fastest Speed 50 | 50 120 120 120 50 50 Average Speed 110 | 112 120 120 120 120 53 Slowest Speed 200 | 120 120 120 120 190 200 Overloaded Moves . | . . . . . . Propulsion Burnouts . | . . . . . . Robots Hopped . | . . . . . . Potential Cave-ins . | . . . . . . Cave-ins Triggered . | . . . . . . Exploration Rate (%) 19 | 4 25 17 33 18 17 Regions Visited 5 Branch Regions 2 Pre-discovered Areas 1 | . . . 1 . . Known Exits Taken . | . . . . . . Unknown Exits Taken 5 | 1 1 1 1 1 . Scrap Searched 1 | . . . 1 . . Spaces Dug . | . . . . . . Terrain Destroyed . | . . . . . . Melee . | . . . . . . Projectile . | . . . . . . AOE . | . . . . . . Terrain Rammed . | . . . . . . Walls Destroyed . | . . . . . . Machines Disabled . | . . . . . . Actions | -11 -10 -9 -9 -8 -8 --------- Run | Yrd Mat Mat Min Mat Sto Total 1071 | 56 142 279 186 245 163 Wait 114 | . 2 45 2 36 29 Move 737 | 46 119 155 174 137 106 Hop . | . . . . . . Pick Up 27 | 4 3 10 2 8 . Fast Attach 13 | 6 . 2 . 3 2 Attach 16 | . . 1 1 8 6 Detach 1 | . . . . . 1 Swap 25 | . 1 12 . 10 2 Drop 22 | . . 13 2 7 . Fire 108 | . 17 41 5 36 9 Melee 8 | . . . . . 8 Ram . | . . . . . . Kick . | . . . . . . Crush . | . . . . . . Escape Stasis . | . . . . . . Rewire . | . . . . . . Trap . | . . . . . . Miscellaneous . | . . . . . . Route ------- -11/Scrapyard -10/Materials (discovered 2 exits: *Mat / Min) -9/Materials -9/Mines -8/Materials -8/Storage History --------- Turn | Location | Event 3 | -11/Scrapyard | Discovered new exit (range 15) 66 | -11/Scrapyard | Entered Materials 241 | -10/Materials | Identified exit to Mines 250 | -10/Materials | Discovered new exit (range 7) 260 | -10/Materials | Entered another Materials area 260 | -9/Materials | Evolved 2 slots: Propulsion x2 302 | -9/Materials | Build established: Mutant 627 | -9/Materials | Discovered new exit (range 5) 638 | -9/Materials | Entered Mines 805 | -9/Mines | Learned location of Zion (-7) 825 | -9/Mines | Received a Mining Laser from a helpful Derelict 848 | -9/Mines | Build established: Scavenger-Mutant 858 | -9/Mines | Discovered new exit (range 7) 866 | -9/Mines | Entered Materials 866 | -8/Materials | Accompanied by 1 ally 866 | -8/Materials | Evolved 2 slots: Utility x1, Weapon x1 923 | -8/Materials | Repaired Aluminum Leg 1084 | -8/Materials | Lost 3 parts (1n1u1w) 1197 | -8/Materials | Released all parts (9) 1201 | -8/Materials | Discovered new exit (range 3) 1207 | -8/Materials | Entered Storage 1220 | -8/Storage | Lost 5 parts (1p2n2w) 1283 | -8/Storage | Core integrity fell below 50% 1320 | -8/Storage | Core integrity fell below 20% 1354 | -8/Storage | Destroyed by H-55 Commando with Gauss Rifle Last Messages --------------- 01312_ G-47 Trooper destroyed. 01314_ Slug penetrates Wall. 01315_ EM Pulse Cannon destroyed. 01315_ Acquired 46 matter. 01317_ Critical hit (Burn: +37). 01322_ G-47 Trooper destroyed. 01322_ R-06 Scavenger collects Aluminum Leg. 01325_ Slug penetrates Wall. 01326_ Acquired Particle Gun. 01329_ Acquired Imp. Heat Sink. 01330_ Slug penetrates Wall. 01335_ R-06 Scavenger collects Aluminum Leg. 01336_ Slug penetrates Wall. 01339_ Cryofiber Web destroyed. 01342_ Slug penetrates Wall. 01345_ Slug penetrates Transfer Shaft. 01347_ Y-45 Defender destroyed. 01347_ R-06 Scavenger collects Hvy. Assault Rifle. 01351_ R-06 Scavenger collects Lgt. Treads. Map ----- +----------------------------------------------------+ | ?????????????????????????????????????? | | ?????????????????????????????????????? | | ?????????????????????????????????????? | | ?????????????????????????????????????? | | ?????????????????????????????????????? | | ?????????????????????????????????????? | | ?????????????????????????????????????? | | ????????????????????????????????????? | | ????????????????????????????????????? | | ?????????????????????????##?????????? | | ???????????????????????###T######### | | ???????????????????????? | | ?????????????????????????? ?? | | ???????????????????????????? ???? | | ??????????????????????########+#####? | | ??????????????????????# #?# | | ??????????????????????# "" "" #?# | | ??????????????????????# """"" #?# | | ??????????????????????# """"" #?# | | ??????????????????????# #?# | | ????????###################+########## | | ????????# | | ????????# | | ????????# | | ????????######h##/################+### | | ?????????# @% rr #??????????# | | ????????## " %[""" ####???????# """"" | | ??????# "" "" """ "" #???????#?????" | | ??????#"G """ """ """#?????????????" | | ??????# "" R"#?????????????"" | | ??????#### """#??????????????? | | ?????????# ####??????????????? | | ?????????# #?????????????????? | | ?????????###########?????????????????? | | ?????????????????????????????????????? | | | | | | | | | | | | | | | | | | | | | | | | | | | | | | | +----------------------------------------------------+ Best States ------------- Heat Dissipation 51 Energy Generation 16 Energy Capacity 290 Matter Stores 500 Matter Capacity 500 Sight Range 16 Robot Scan Range 14 Terrain Scan Density 10 Base Temperature (-) 100 Armor Coverage 225 Resistance: KI 20 Evasion (%) 55 Item Schematics ----------------- None Robot Schematics ------------------ None Fabricated ------------ Nothing Repaired ---------- Aluminum Leg | 3% | -8/Materials Alien Tech Used ----------------- None Achievements -------------- None Challenges ------------ None Game ------ Seed ComponentCobblerExtrapolator Manual? 0 Play Time 00:23:17 Cumulative 35.2 hours Start 2025.06.29 @ 16:17:44 End 2025.06.29 @ 16:38:50 Sessions 1 Manual Loads 0 Difficulty Rogue Special Mode None Game No. 39 Rogue 39 Adventurer 0 Explorer 0 Win Type - Total 0 Types 0/0/0/0/0/0/0/0/0/0 Lore% 15 Gallery% 29 Achievement% 23 Wizard Run 0 Options --------- Layout 1 ASCII 0 Keyboard 0 Movement Mouse Keybinds 0 Fullscreen 2 Font 48/Smallcaps Map View 50x35 Zoom Use 0% Tactical HUD 1 Map Filters NONE Filters NONE Steam 0 RUN: 84b48211-165a-4313-b5fd-65eee80369c8